[Event "*** Titled Tuesday Blitz"]
[Site "Chess.com"]
[Date "2020.05.19"]
[Round "6"]
[White "White_Ghost"]
[Black "Playgood28"]
[Result "1-0"]
[WhiteElo "2446"]
[BlackElo "2281"]
[TimeControl "180+1"]
[EndTime "13:09:23 PDT"]
[Termination "White_Ghost won by resignation"]

1. d4 {[%clk 0:02:44.5]} 1... f5 {[%clk 0:02:58.7]} 2. Nf3 {[%clk 0:02:41.9]}
2... g6 {[%clk 0:02:54.7]} 3. b3 {[%clk 0:02:42.8]} 3... Nf6 {[%clk 0:02:53.9]}
4. Bb2 {[%clk 0:02:43.7]} 4... Bg7 {[%clk 0:02:53.7]} 5. c4 {[%clk 0:02:43.8]}
5... d6 {[%clk 0:02:52.6]} 6. Nbd2 {[%clk 0:02:44.4]} 6... O-O {[%clk
0:02:52.1]} 7. g3 {[%clk 0:02:43]} 7... c6 {[%clk 0:02:50.9]} 8. Bg2 {[%clk
0:02:43.1]} 8... Qc7 {[%clk 0:02:50.5]} 9. O-O {[%clk 0:02:43.1]} 9... Re8
{[%clk 0:02:46.9]} 10. Re1 {[%clk 0:02:39.6]} 10... e5 {[%clk 0:02:46.3]} 11.
dxe5 {[%clk 0:02:38.8]} 11... dxe5 {[%clk 0:02:45.7]} 12. e4 {[%clk 0:02:39.7]}
12... Nxe4 {[%clk 0:02:30.2]} 13. Nxe4 {[%clk 0:02:38.6]} 13... fxe4 {[%clk
0:02:30.3]} 14. Ng5 {[%clk 0:02:35.8]} 14... Na6 {[%clk 0:02:24.2]} 15. Nxe4
{[%clk 0:02:35.2]} 15... Bf5 {[%clk 0:02:21.1]} 16. Qe2 {[%clk 0:02:30.7]} 16...
Bxe4 {[%clk 0:02:11.6]} 17. Bxe4 {[%clk 0:02:29.1]} 17... Nc5 {[%clk 0:02:10.9]}
18. Bg2 {[%clk 0:02:29.6]} 18... Rad8 {[%clk 0:01:56.3]} 19. Rad1 {[%clk
0:02:26.2]} 19... Rxd1 {[%clk 0:01:54.9]} 20. Rxd1 {[%clk 0:02:21.5]} 20... Ne6
{[%clk 0:01:30.2]} 21. h4 {[%clk 0:02:12]} 21... Qf7 {[%clk 0:01:29.5]} 22. h5
{[%clk 0:02:10.6]} 22... Nd4 {[%clk 0:01:28.6]} 23. Qd2 {[%clk 0:02:05.6]} 23...
gxh5 {[%clk 0:01:20.3]} 24. Re1 {[%clk 0:01:59.3]} 24... h4 {[%clk 0:01:07.9]}
25. gxh4 {[%clk 0:01:55]} 25... Qh5 {[%clk 0:01:01.2]} 26. Re4 {[%clk
0:01:40.9]} 26... Nf3+ {[%clk 0:00:54.2]} 27. Bxf3 {[%clk 0:01:40]} 27... Qxf3
{[%clk 0:00:54.1]} 28. Re3 {[%clk 0:01:35.8]} 28... Qf4 {[%clk 0:00:45.8]} 29.
Qe2 {[%clk 0:01:33]} 29... Qxh4 {[%clk 0:00:44.1]} 30. Rg3 {[%clk 0:01:31.8]}
30... Kh8 {[%clk 0:00:40.4]} 31. Qf3 {[%clk 0:01:28.5]} 31... Rg8 {[%clk
0:00:38.6]} 32. Kf1 {[%clk 0:01:21.9]} 32... Qe7 {[%clk 0:00:32.6]} 33. Qf5
{[%clk 0:01:18.2]} 33... a5 {[%clk 0:00:28.4]} 34. Rxg7 {[%clk 0:01:15.8]} 34...
Rxg7 {[%clk 0:00:26.5]} 35. Bxe5 {[%clk 0:01:16.2]} 35... Kg8 {[%clk 0:00:26.1]}
36. Qc8+ {[%clk 0:01:09.5]} 36... Kf7 {[%clk 0:00:25]} 37. Qf5+ {[%clk
0:01:01.7]} 37... Kg8 {[%clk 0:00:24.4]} 38. Bd4 {[%clk 0:00:53.5]} 38... Rf7
{[%clk 0:00:21.2]} 39. Qg4+ {[%clk 0:00:52.7]} 39... Kf8 {[%clk 0:00:19.4]} 40.
Qc8+ {[%clk 0:00:48.1]} 40... Qe8 {[%clk 0:00:19]} 41. Qh3 {[%clk 0:00:48.6]}
41... Qd7 {[%clk 0:00:17.7]} 42. Qh6+ {[%clk 0:00:48.3]} 42... Ke8 {[%clk
0:00:17]} 43. Qh4 {[%clk 0:00:43.4]} 43... c5 {[%clk 0:00:16.8]} 44. Bc3 {[%clk
0:00:18.7]} 44... Qd1+ {[%clk 0:00:15.2]} 45. Kg2 {[%clk 0:00:17.1]} 45... Rg7+
{[%clk 0:00:12.9]} 46. Bxg7 {[%clk 0:00:16.6]} 1-0

[Event "*** Titled Tuesday Blitz"]
[Site "Chess.com"]
[Date "2020.05.19"]
[Round "6"]
[White "Pavel_Mir"]
[Black "szachuspl"]
[Result "0-1"]
[WhiteElo "2201"]
[BlackElo "2548"]
[TimeControl "180+1"]
[EndTime "13:09:24 PDT"]
[Termination "szachuspl won by resignation"]

1. e4 {[%clk 0:03:00.9]} 1... c5 {[%clk 0:02:58.9]} 2. Nf3 {[%clk 0:03:00.8]}
2... e6 {[%clk 0:02:59]} 3. d4 {[%clk 0:03:00.9]} 3... cxd4 {[%clk 0:02:59.5]}
4. Nxd4 {[%clk 0:03:01.5]} 4... Nc6 {[%clk 0:03:00.2]} 5. Nc3 {[%clk 0:03:00.9]}
5... a6 {[%clk 0:02:59.4]} 6. Be2 {[%clk 0:02:59.7]} 6... Nf6 {[%clk 0:02:59.2]}
7. Nxc6 {[%clk 0:02:58.2]} 7... bxc6 {[%clk 0:02:59.2]} 8. e5 {[%clk 0:02:57.6]}
8... Nd5 {[%clk 0:02:56.1]} 9. Ne4 {[%clk 0:02:57.4]} 9... f5 {[%clk 0:02:55.9]}
10. Nd6+ {[%clk 0:02:44.4]} 10... Bxd6 {[%clk 0:02:53.9]} 11. exd6 {[%clk
0:02:45]} 11... O-O {[%clk 0:02:54.4]} 12. c4 {[%clk 0:02:39.9]} 12... Nf6
{[%clk 0:02:54.4]} 13. c5 {[%clk 0:02:30.1]} 13... Qa5+ {[%clk 0:02:50.1]} 14.
Qd2 {[%clk 0:01:55.9]} 14... Qxc5 {[%clk 0:02:49.6]} 15. b4 {[%clk 0:01:55.8]}
15... Qd5 {[%clk 0:02:38.7]} 16. Qxd5 {[%clk 0:01:40.5]} 16... cxd5 {[%clk
0:02:12.5]} 17. f3 {[%clk 0:01:39.6]} 17... Bb7 {[%clk 0:02:10.9]} 18. Kf2
{[%clk 0:01:39.2]} 18... Rfc8 {[%clk 0:02:09.7]} 19. Be3 {[%clk 0:01:38]} 19...
Rc2 {[%clk 0:02:00.2]} 20. Rhc1 {[%clk 0:01:34.7]} 20... Rac8 {[%clk 0:01:59]}
21. Rxc2 {[%clk 0:01:29.8]} 21... Rxc2 {[%clk 0:01:59.9]} 22. Ke1 {[%clk
0:01:30]} 22... e5 {[%clk 0:01:54.3]} 23. Kd1 {[%clk 0:01:27.1]} 23... Rc6
{[%clk 0:01:39.9]} 24. Bc5 {[%clk 0:01:24.9]} 24... Kf7 {[%clk 0:01:36.5]} 25.
a4 {[%clk 0:01:22.5]} 25... Ke6 {[%clk 0:01:35.5]} 26. Rc1 {[%clk 0:01:17.2]}
26... Rc8 {[%clk 0:01:26.1]} 27. b5 {[%clk 0:01:12.7]} 27... axb5 {[%clk
0:01:26.2]} 28. Bxb5 {[%clk 0:01:12.4]} 28... Ne8 {[%clk 0:01:22]} 29. a5 {[%clk
0:00:52.7]} 29... Nxd6 {[%clk 0:01:21.4]} 30. Be2 {[%clk 0:00:51.3]} 30... Nc4
{[%clk 0:01:02.9]} 31. Bf2 {[%clk 0:00:23.2]} 31... Ba6 {[%clk 0:01:00.3]} 32.
Rb1 {[%clk 0:00:20.6]} 32... f4 {[%clk 0:00:42.4]} 33. Bd3 {[%clk 0:00:17.3]}
33... g6 {[%clk 0:00:34.6]} 34. Be2 {[%clk 0:00:17.2]} 34... d4 {[%clk
0:00:27.6]} 35. Bd3 {[%clk 0:00:14.8]} 35... Ne3+ {[%clk 0:00:25.1]} 36. Bxe3
{[%clk 0:00:15]} 36... Bxd3 {[%clk 0:00:25.1]} 37. Rb6+ {[%clk 0:00:15.7]} 37...
d6 {[%clk 0:00:24.3]} 38. Bd2 {[%clk 0:00:15.7]} 38... Rc4 {[%clk 0:00:23.1]}
39. Bb4 {[%clk 0:00:15.4]} 39... Rc8 {[%clk 0:00:18.8]} 40. Bxd6 {[%clk
0:00:15.5]} 40... Kd5 {[%clk 0:00:18.1]} 41. Ba3 {[%clk 0:00:15]} 41... Rc2
{[%clk 0:00:15.7]} 42. a6 {[%clk 0:00:15.1]} 42... Ra2 {[%clk 0:00:15.7]} 43.
Rb3 {[%clk 0:00:15.1]} 43... Bc4 {[%clk 0:00:15.3]} 44. Rb6 {[%clk 0:00:12.8]}
44... Rxa3 {[%clk 0:00:14.6]} 45. Rb7 {[%clk 0:00:12.5]} 45... Rxa6 {[%clk
0:00:14.4]} 0-1

[Event "*** Titled Tuesday Blitz"]
[Site "Chess.com"]
[Date "2020.05.19"]
[Round "6"]
[White "Chichin_chao"]
[Black "hongnhung1234"]
[Result "1-0"]
[WhiteElo "2379"]
[BlackElo "2192"]
[TimeControl "180+1"]
[EndTime "13:09:24 PDT"]
[Termination "Chichin_chao won by checkmate"]

1. e4 {[%clk 0:02:38.4]} 1... c5 {[%clk 0:02:58.6]} 2. Nf3 {[%clk 0:02:37.9]}
2... e6 {[%clk 0:02:58.4]} 3. b3 {[%clk 0:02:37.5]} 3... Nc6 {[%clk 0:02:57.4]}
4. Bb2 {[%clk 0:02:37.2]} 4... d5 {[%clk 0:02:55.4]} 5. exd5 {[%clk 0:02:36.6]}
5... exd5 {[%clk 0:02:56.3]} 6. Bb5 {[%clk 0:02:37]} 6... Nf6 {[%clk 0:02:53.8]}
7. O-O {[%clk 0:02:37.1]} 7... Be7 {[%clk 0:02:51]} 8. Ne5 {[%clk 0:02:35.7]}
8... Bd7 {[%clk 0:02:50.3]} 9. Nxd7 {[%clk 0:02:34.5]} 9... Qxd7 {[%clk
0:02:51.2]} 10. Re1 {[%clk 0:02:34]} 10... O-O {[%clk 0:02:50.3]} 11. Bxc6
{[%clk 0:02:25.7]} 11... bxc6 {[%clk 0:02:51.2]} 12. d3 {[%clk 0:02:26]} 12...
Rfe8 {[%clk 0:02:44.5]} 13. Qf3 {[%clk 0:02:24.6]} 13... d4 {[%clk 0:02:38.9]}
14. Nd2 {[%clk 0:02:23.7]} 14... Nd5 {[%clk 0:02:36.8]} 15. Nc4 {[%clk
0:02:19.1]} 15... Bf6 {[%clk 0:02:32.2]} 16. a3 {[%clk 0:02:16.4]} 16... a5
{[%clk 0:02:21.9]} 17. a4 {[%clk 0:01:53.4]} 17... Qc7 {[%clk 0:02:15.4]} 18.
Ba3 {[%clk 0:01:39.7]} 18... Nb4 {[%clk 0:01:56.3]} 19. Bxb4 {[%clk 0:01:36.9]}
19... cxb4 {[%clk 0:01:57.2]} 20. Re4 {[%clk 0:01:32.4]} 20... c5 {[%clk
0:01:53.2]} 21. Rae1 {[%clk 0:01:31.4]} 21... Red8 {[%clk 0:01:48.7]} 22. h4
{[%clk 0:01:25.9]} 22... h6 {[%clk 0:01:46.7]} 23. g3 {[%clk 0:01:24.7]} 23...
Rab8 {[%clk 0:01:30.2]} 24. Kg2 {[%clk 0:01:18.2]} 24... Qa7 {[%clk 0:01:21]}
25. Qf5 {[%clk 0:01:17.5]} 25... Qc7 {[%clk 0:01:10.9]} 26. Rg4 {[%clk
0:00:50.6]} 26... Qc6+ {[%clk 0:01:01.4]} 27. Qf3 {[%clk 0:00:46.4]} 27... Qd7
{[%clk 0:00:38.1]} 28. Nxa5 {[%clk 0:00:42]} 28... Kh8 {[%clk 0:00:36.2]} 29.
Nc6 {[%clk 0:00:38.9]} 29... Rbc8 {[%clk 0:00:31.8]} 30. Nxd8 {[%clk 0:00:38.3]}
30... Bxd8 {[%clk 0:00:32.3]} 31. Rge4 {[%clk 0:00:36.6]} 31... Bf6 {[%clk
0:00:29.5]} 32. Qg4 {[%clk 0:00:34.3]} 32... Qc6 {[%clk 0:00:26.6]} 33. Qxc8+
{[%clk 0:00:33]} 33... Qxc8 {[%clk 0:00:25.7]} 34. Re8+ {[%clk 0:00:33.9]} 34...
Qxe8 {[%clk 0:00:25.5]} 35. Rxe8+ {[%clk 0:00:34.8]} 35... Kh7 {[%clk
0:00:26.4]} 36. a5 {[%clk 0:00:34.9]} 36... c4 {[%clk 0:00:23.7]} 37. dxc4
{[%clk 0:00:33.9]} 37... d3 {[%clk 0:00:22.6]} 38. cxd3 {[%clk 0:00:34.8]} 38...
Bd4 {[%clk 0:00:23.2]} 39. a6 {[%clk 0:00:34.4]} 39... Kg6 {[%clk 0:00:22.6]}
40. Rd8 {[%clk 0:00:32.6]} 40... Bb6 {[%clk 0:00:22.7]} 41. Rd6+ {[%clk
0:00:31.9]} 41... Kh5 {[%clk 0:00:22.8]} 42. Rxb6 {[%clk 0:00:31.4]} 42... f5
{[%clk 0:00:23.3]} 43. Rxb4 {[%clk 0:00:26.6]} 43... g5 {[%clk 0:00:22.5]} 44.
hxg5 {[%clk 0:00:27]} 44... Kg4 {[%clk 0:00:19.8]} 45. gxh6 {[%clk 0:00:26.1]}
45... f4 {[%clk 0:00:20]} 46. f3+ {[%clk 0:00:25.9]} 46... Kh5 {[%clk
0:00:19.5]} 47. gxf4 {[%clk 0:00:26.6]} 47... Kh4 {[%clk 0:00:19.4]} 48. h7
{[%clk 0:00:25.6]} 48... Kh5 {[%clk 0:00:19.9]} 49. h8=Q+ {[%clk 0:00:25.1]}
49... Kg6 {[%clk 0:00:20.8]} 50. Rb6+ {[%clk 0:00:24.4]} 50... Kf5 {[%clk
0:00:21.7]} 51. Qe5# {[%clk 0:00:24]} 1-0

[Event "*** Titled Tuesday Blitz"]
[Site "Chess.com"]
[Date "2020.05.19"]
[Round "6"]
[White "JuliaEfremova"]
[Black "stasiek18"]
[Result "1-0"]
[WhiteElo "2117"]
[BlackElo "2353"]
[TimeControl "180+1"]
[EndTime "13:09:26 PDT"]
[Termination "JuliaEfremova won by resignation"]

1. d4 {[%clk 0:03:00.9]} 1... d6 {[%clk 0:02:57.2]} 2. Bf4 {[%clk 0:02:58.6]}
2... g6 {[%clk 0:02:51.8]} 3. Nc3 {[%clk 0:02:56.6]} 3... Bg7 {[%clk 0:02:51.9]}
4. Qd2 {[%clk 0:02:56.9]} 4... Nc6 {[%clk 0:02:42.1]} 5. Nf3 {[%clk 0:02:53.7]}
5... Bg4 {[%clk 0:02:41]} 6. e3 {[%clk 0:02:38.2]} 6... Bxf3 {[%clk 0:02:37.9]}
7. gxf3 {[%clk 0:02:37.8]} 7... e5 {[%clk 0:02:38.5]} 8. dxe5 {[%clk 0:02:37.4]}
8... dxe5 {[%clk 0:02:37.3]} 9. Bg3 {[%clk 0:02:28.5]} 9... Qxd2+ {[%clk
0:02:36.2]} 10. Kxd2 {[%clk 0:02:29.4]} 10... O-O-O+ {[%clk 0:02:35.8]} 11. Bd3
{[%clk 0:02:25.6]} 11... f5 {[%clk 0:02:17]} 12. Rad1 {[%clk 0:02:20.7]} 12...
Nf6 {[%clk 0:02:02.3]} 13. Kc1 {[%clk 0:02:17.9]} 13... a6 {[%clk 0:01:49.2]}
14. Bh4 {[%clk 0:02:11.5]} 14... Rd6 {[%clk 0:01:49]} 15. Bxf6 {[%clk
0:02:11.1]} 15... Bxf6 {[%clk 0:01:49.8]} 16. h4 {[%clk 0:02:11.1]} 16... h5
{[%clk 0:01:36.9]} 17. Rdg1 {[%clk 0:02:09.6]} 17... Be7 {[%clk 0:01:35.3]} 18.
Bc4 {[%clk 0:02:06]} 18... Rf8 {[%clk 0:01:27.6]} 19. a3 {[%clk 0:01:55.6]}
19... Nd8 {[%clk 0:01:16.2]} 20. Nd5 {[%clk 0:01:49.3]} 20... Kd7 {[%clk
0:01:15.4]} 21. f4 {[%clk 0:01:33.7]} 21... e4 {[%clk 0:01:10.1]} 22. Nxe7
{[%clk 0:01:28.5]} 22... Kxe7 {[%clk 0:01:10]} 23. Rd1 {[%clk 0:01:28.5]} 23...
b5 {[%clk 0:00:55.3]} 24. Bb3 {[%clk 0:01:22.7]} 24... Nb7 {[%clk 0:00:54.5]}
25. Rhg1 {[%clk 0:01:18.7]} 25... Kf6 {[%clk 0:00:51.7]} 26. Bd5 {[%clk
0:01:10]} 26... Nc5 {[%clk 0:00:43.8]} 27. b4 {[%clk 0:01:09.7]} 27... Na4
{[%clk 0:00:42.4]} 28. Bb3 {[%clk 0:01:00.6]} 28... Nc3 {[%clk 0:00:37.9]} 29.
Rxd6+ {[%clk 0:00:58.6]} 29... cxd6 {[%clk 0:00:37.1]} 30. Kb2 {[%clk
0:00:55.9]} 30... Rc8 {[%clk 0:00:36.7]} 31. Ra1 {[%clk 0:00:43.6]} 31... Ne2
{[%clk 0:00:25.6]} 32. Rd1 {[%clk 0:00:41]} 32... Ke7 {[%clk 0:00:25.4]} 33. a4
{[%clk 0:00:32]} 33... bxa4 {[%clk 0:00:24.2]} 34. Bxa4 {[%clk 0:00:29.6]} 34...
Nc3 {[%clk 0:00:23.1]} 35. Ra1 {[%clk 0:00:29.9]} 35... Rc4 {[%clk 0:00:18.7]}
36. Kb3 {[%clk 0:00:28.5]} 36... Rc7 {[%clk 0:00:17.9]} 37. Rg1 {[%clk
0:00:24.3]} 37... Ne2 {[%clk 0:00:16.9]} 38. Rxg6 {[%clk 0:00:23.1]} 38... d5
{[%clk 0:00:09]} 39. Rh6 {[%clk 0:00:19.4]} 39... d4 {[%clk 0:00:08.7]} 40. Rxh5
{[%clk 0:00:18.9]} 40... d3 {[%clk 0:00:07.1]} 41. cxd3 {[%clk 0:00:18.9]} 41...
exd3 {[%clk 0:00:06.9]} 42. Rh7+ {[%clk 0:00:19.5]} 42... Kd6 {[%clk 0:00:06.7]}
43. Rxc7 {[%clk 0:00:20.4]} 43... Kxc7 {[%clk 0:00:07.1]} 44. Kc4 {[%clk
0:00:20.7]} 44... d2 {[%clk 0:00:06.7]} 45. Kd3 {[%clk 0:00:20.9]} 45... Nc3
{[%clk 0:00:03.9]} 46. Kxc3 {[%clk 0:00:20]} 1-0

[Event "*** Titled Tuesday Blitz"]
[Site "Chess.com"]
[Date "2020.05.19"]
[Round "6"]
[White "gvanna"]
[Black "StegariuVlad"]
[Result "1-0"]
[WhiteElo "2470"]
[BlackElo "2568"]
[TimeControl "180+1"]
[EndTime "13:09:27 PDT"]
[Termination "gvanna won by resignation"]

1. e4 {[%clk 0:03:00.9]} 1... e5 {[%clk 0:02:57.9]} 2. Nf3 {[%clk 0:03:01.1]}
2... Nc6 {[%clk 0:02:56.8]} 3. Bb5 {[%clk 0:03:01.1]} 3... a6 {[%clk 0:02:56.3]}
4. Ba4 {[%clk 0:03:01.6]} 4... Nf6 {[%clk 0:02:55.7]} 5. O-O {[%clk 0:03:01.6]}
5... Be7 {[%clk 0:02:52]} 6. Re1 {[%clk 0:03:01.4]} 6... b5 {[%clk 0:02:51.5]}
7. Bb3 {[%clk 0:03:01.8]} 7... d6 {[%clk 0:02:50.1]} 8. c3 {[%clk 0:03:01.9]}
8... O-O {[%clk 0:02:47.9]} 9. h3 {[%clk 0:03:02.3]} 9... Na5 {[%clk 0:02:45.5]}
10. Bc2 {[%clk 0:03:02]} 10... c5 {[%clk 0:02:45.4]} 11. d4 {[%clk 0:03:02.1]}
11... cxd4 {[%clk 0:02:44.8]} 12. cxd4 {[%clk 0:03:01.9]} 12... Qc7 {[%clk
0:02:45.2]} 13. Nc3 {[%clk 0:02:55.7]} 13... Bb7 {[%clk 0:02:39.7]} 14. Bg5
{[%clk 0:02:48.9]} 14... Nc4 {[%clk 0:02:22]} 15. Qc1 {[%clk 0:02:37.1]} 15...
h6 {[%clk 0:02:18.2]} 16. Bh4 {[%clk 0:02:35.5]} 16... Rac8 {[%clk 0:02:11.2]}
17. Bb3 {[%clk 0:02:09.9]} 17... Nxb2 {[%clk 0:02:01.8]} 18. Qxb2 {[%clk
0:02:09.8]} 18... Qxc3 {[%clk 0:02:01.5]} 19. Qxc3 {[%clk 0:02:09.2]} 19... Rxc3
{[%clk 0:02:01.7]} 20. dxe5 {[%clk 0:02:09.7]} 20... dxe5 {[%clk 0:02:01.3]} 21.
Nxe5 {[%clk 0:02:10.1]} 21... g5 {[%clk 0:02:00.4]} 22. Bg3 {[%clk 0:01:51.2]}
22... Nxe4 {[%clk 0:02:00.4]} 23. Bh2 {[%clk 0:01:40]} 23... Bc5 {[%clk
0:01:57]} 24. Re2 {[%clk 0:01:32.7]} 24... Re8 {[%clk 0:01:27.9]} 25. Bxf7+
{[%clk 0:01:30.2]} 25... Kf8 {[%clk 0:01:25.7]} 26. Bxe8 {[%clk 0:01:30.2]}
26... Kxe8 {[%clk 0:01:25.8]} 27. Rd1 {[%clk 0:01:14.6]} 27... Ke7 {[%clk
0:01:21.1]} 28. Nd3 {[%clk 0:01:13.7]} 28... Bd4 {[%clk 0:01:17.4]} 29. Kf1
{[%clk 0:01:09.2]} 29... Kf6 {[%clk 0:01:10.4]} 30. f3 {[%clk 0:01:06.7]} 30...
Nc5 {[%clk 0:01:06.2]} 31. Ne5 {[%clk 0:00:56.5]} 31... Ne6 {[%clk 0:00:54]} 32.
Ng4+ {[%clk 0:00:47.3]} 32... Kf5 {[%clk 0:00:48.9]} 33. Nxh6+ {[%clk 0:00:47]}
33... Kf6 {[%clk 0:00:49.1]} 34. Rxd4 {[%clk 0:00:41.5]} 34... Nxd4 {[%clk
0:00:48]} 35. Be5+ {[%clk 0:00:41.4]} 35... Kg6 {[%clk 0:00:48.1]} 36. Bxd4
{[%clk 0:00:40.5]} 36... Rc1+ {[%clk 0:00:47.8]} 37. Kf2 {[%clk 0:00:40.4]}
37... Kxh6 {[%clk 0:00:42.2]} 38. Re6+ {[%clk 0:00:40.2]} 38... Kh7 {[%clk
0:00:39.3]} 39. Re7+ {[%clk 0:00:40.2]} 39... Kg6 {[%clk 0:00:39.5]} 40. Rxb7
{[%clk 0:00:37]} 40... Rc2+ {[%clk 0:00:39.6]} 41. Ke3 {[%clk 0:00:32.2]} 41...
Rxa2 {[%clk 0:00:40.5]} 42. g4 {[%clk 0:00:31.1]} 42... Ra4 {[%clk 0:00:29]} 43.
Rb6+ {[%clk 0:00:30.1]} 43... Kf7 {[%clk 0:00:26.6]} 44. Bf6 {[%clk 0:00:26.9]}
44... b4 {[%clk 0:00:25.6]} 45. Bxg5 {[%clk 0:00:26.5]} 45... Ra3+ {[%clk
0:00:25.7]} 46. Ke4 {[%clk 0:00:27]} 46... b3 {[%clk 0:00:25.2]} 47. Bf6 {[%clk
0:00:24.7]} 47... a5 {[%clk 0:00:24.8]} 48. g5 {[%clk 0:00:23.5]} 48... a4
{[%clk 0:00:20.9]} 49. g6+ {[%clk 0:00:22.4]} 49... Ke8 {[%clk 0:00:17.2]} 50.
Rd6 {[%clk 0:00:21.9]} 1-0

[Event "*** Titled Tuesday Blitz"]
[Site "Chess.com"]
[Date "2020.05.19"]
[Round "6"]
[White "maciek_92"]
[Black "jonaszmb"]
[Result "1-0"]
[WhiteElo "2729"]
[BlackElo "2517"]
[TimeControl "180+1"]
[EndTime "13:09:28 PDT"]
[Termination "maciek_92 won on time"]

1. e4 {[%clk 0:03:00.9]} 1... c5 {[%clk 0:03:00.3]} 2. Nf3 {[%clk 0:03:01.4]}
2... Nc6 {[%clk 0:03:00.7]} 3. Bb5 {[%clk 0:02:58.8]} 3... a6 {[%clk 0:03:00.9]}
4. Bxc6 {[%clk 0:02:55.5]} 4... dxc6 {[%clk 0:03:01.8]} 5. h3 {[%clk 0:02:51]}
5... Qc7 {[%clk 0:03:02]} 6. a4 {[%clk 0:02:47.5]} 6... a5 {[%clk 0:03:01.6]} 7.
d3 {[%clk 0:02:45.2]} 7... e5 {[%clk 0:03:01.4]} 8. Nbd2 {[%clk 0:02:40.7]} 8...
Ne7 {[%clk 0:03:01.4]} 9. Nc4 {[%clk 0:02:40.5]} 9... Ng6 {[%clk 0:03:01.4]} 10.
Bd2 {[%clk 0:02:20]} 10... Be7 {[%clk 0:02:57.1]} 11. O-O {[%clk 0:02:07.1]}
11... f6 {[%clk 0:02:52.9]} 12. Be3 {[%clk 0:01:54.4]} 12... O-O {[%clk
0:02:47.8]} 13. Nfd2 {[%clk 0:01:38.6]} 13... Be6 {[%clk 0:02:35.8]} 14. Qe2
{[%clk 0:01:33.6]} 14... b6 {[%clk 0:02:33.8]} 15. c3 {[%clk 0:01:19.9]} 15...
Rfd8 {[%clk 0:02:24.6]} 16. Rfd1 {[%clk 0:01:19.2]} 16... Rab8 {[%clk
0:02:08.1]} 17. Nf1 {[%clk 0:01:13.1]} 17... Qc8 {[%clk 0:01:53.3]} 18. Ng3
{[%clk 0:01:07.1]} 18... Nh4 {[%clk 0:01:36.5]} 19. Qh5 {[%clk 0:01:01]} 19...
g5 {[%clk 0:01:34.6]} 20. Nxe5 {[%clk 0:00:36]} 20... fxe5 {[%clk 0:01:28.5]}
21. Bxg5 {[%clk 0:00:36.4]} 21... Bxg5 {[%clk 0:01:26.8]} 22. Qxg5+ {[%clk
0:00:36.4]} 22... Ng6 {[%clk 0:01:27.5]} 23. Nh5 {[%clk 0:00:35.7]} 23... Rf8
{[%clk 0:01:14.8]} 24. d4 {[%clk 0:00:27.9]} 24... cxd4 {[%clk 0:01:09.1]} 25.
cxd4 {[%clk 0:00:28]} 25... Qd8 {[%clk 0:01:01]} 26. Qh6 {[%clk 0:00:28.2]}
26... Rb7 {[%clk 0:00:49.1]} 27. dxe5 {[%clk 0:00:28.3]} 27... Qh4 {[%clk
0:00:43.9]} 28. Nf6+ {[%clk 0:00:24.7]} 28... Kh8 {[%clk 0:00:35.9]} 29. Qxh4
{[%clk 0:00:24.7]} 29... Nxh4 {[%clk 0:00:36.8]} 30. Rd6 {[%clk 0:00:25.1]}
30... Bc8 {[%clk 0:00:22.4]} 31. Rxc6 {[%clk 0:00:18.7]} 31... Re7 {[%clk
0:00:19.9]} 32. f4 {[%clk 0:00:18]} 32... Rg7 {[%clk 0:00:13.6]} 33. g4 {[%clk
0:00:16.8]} 33... Nf3+ {[%clk 0:00:10.1]} 34. Kf2 {[%clk 0:00:16.3]} 34... Nd4
{[%clk 0:00:10.7]} 35. Rd6 {[%clk 0:00:16.4]} 35... Nb3 {[%clk 0:00:09.4]} 36.
Rad1 {[%clk 0:00:16.9]} 36... Nc5 {[%clk 0:00:09.4]} 37. Rd8 {[%clk 0:00:17]}
37... Rf7 {[%clk 0:00:07.3]} 38. Rxf8+ {[%clk 0:00:17]} 38... Rxf8 {[%clk
0:00:08.2]} 39. Ke3 {[%clk 0:00:17.6]} 39... Bb7 {[%clk 0:00:06.4]} 40. Rd6
{[%clk 0:00:16.7]} 40... b5 {[%clk 0:00:05.3]} 41. axb5 {[%clk 0:00:16.2]} 41...
Rc8 {[%clk 0:00:03.8]} 42. g5 {[%clk 0:00:15.7]} 42... Na4 {[%clk 0:00:03.6]}
43. Rd7 {[%clk 0:00:15.7]} 1-0

[Event "*** Titled Tuesday Blitz"]
[Site "Chess.com"]
[Date "2020.05.19"]
[Round "6"]
[White "GM_LOADING"]
[Black "CalinGheorghiu"]
[Result "1-0"]
[WhiteElo "2441"]
[BlackElo "2278"]
[TimeControl "180+1"]
[EndTime "13:09:28 PDT"]
[Termination "GM_LOADING won by checkmate"]

1. e4 {[%clk 0:03:00.9]} 1... c5 {[%clk 0:02:58.9]} 2. Nf3 {[%clk 0:02:58.8]}
2... d6 {[%clk 0:02:58.6]} 3. d4 {[%clk 0:02:57.7]} 3... cxd4 {[%clk 0:02:59.5]}
4. Nxd4 {[%clk 0:02:58.6]} 4... Nf6 {[%clk 0:02:59.6]} 5. Nc3 {[%clk 0:02:59.2]}
5... a6 {[%clk 0:02:59.6]} 6. h3 {[%clk 0:02:59.7]} 6... g6 {[%clk 0:02:57.9]}
7. g4 {[%clk 0:02:59.4]} 7... Bg7 {[%clk 0:02:58.2]} 8. Bg2 {[%clk 0:03:00.1]}
8... O-O {[%clk 0:02:58.7]} 9. O-O {[%clk 0:03:00.5]} 9... Qc7 {[%clk
0:02:41.4]} 10. Be3 {[%clk 0:02:59.4]} 10... Nc6 {[%clk 0:02:39.4]} 11. f4
{[%clk 0:02:54.5]} 11... Nxd4 {[%clk 0:02:32.3]} 12. Bxd4 {[%clk 0:02:52.7]}
12... e5 {[%clk 0:02:32.7]} 13. Be3 {[%clk 0:02:51.2]} 13... exf4 {[%clk
0:02:28.6]} 14. Rxf4 {[%clk 0:02:20.7]} 14... Be6 {[%clk 0:02:25.6]} 15. Rf2
{[%clk 0:02:12.4]} 15... Rac8 {[%clk 0:02:19.9]} 16. Qd2 {[%clk 0:02:11.7]}
16... Rfe8 {[%clk 0:02:12.2]} 17. Raf1 {[%clk 0:02:08.1]} 17... Nd7 {[%clk
0:02:08.8]} 18. Nd5 {[%clk 0:01:47.2]} 18... Bxd5 {[%clk 0:01:51.8]} 19. Qxd5
{[%clk 0:01:48.1]} 19... Ne5 {[%clk 0:01:48.4]} 20. Bd4 {[%clk 0:01:46]} 20...
Re7 {[%clk 0:01:12.2]} 21. Kh1 {[%clk 0:00:54.9]} 21... Qc4 {[%clk 0:01:02]} 22.
Qxc4 {[%clk 0:00:25.5]} 22... Rxc4 {[%clk 0:01:01.1]} 23. Bc3 {[%clk 0:00:23.7]}
23... b5 {[%clk 0:00:59.3]} 24. a3 {[%clk 0:00:23.8]} 24... Rec7 {[%clk
0:00:52]} 25. Rd1 {[%clk 0:00:22.4]} 25... R7c6 {[%clk 0:00:42]} 26. Rfd2 {[%clk
0:00:21.1]} 26... Bf8 {[%clk 0:00:32.7]} 27. g5 {[%clk 0:00:09.3]} 27... Be7
{[%clk 0:00:29.8]} 28. h4 {[%clk 0:00:09.4]} 28... Rxc3 {[%clk 0:00:26.7]} 29.
bxc3 {[%clk 0:00:09.3]} 29... Rxc3 {[%clk 0:00:27.2]} 30. Ra1 {[%clk 0:00:06.4]}
30... Nc4 {[%clk 0:00:27.2]} 31. Re2 {[%clk 0:00:03.1]} 31... Bf8 {[%clk
0:00:21.3]} 32. a4 {[%clk 0:00:03]} 32... b4 {[%clk 0:00:21]} 33. Rd1 {[%clk
0:00:03.6]} 33... Bg7 {[%clk 0:00:19.8]} 34. Rd3 {[%clk 0:00:03.2]} 34... Be5
{[%clk 0:00:17.1]} 35. Rxc3 {[%clk 0:00:03.5]} 35... bxc3 {[%clk 0:00:17.4]} 36.
Bf1 {[%clk 0:00:03.7]} 36... Nb2 {[%clk 0:00:16.9]} 37. Kg2 {[%clk 0:00:03.6]}
37... Nxa4 {[%clk 0:00:16.8]} 38. Re3 {[%clk 0:00:03.6]} 38... Nc5 {[%clk
0:00:17]} 39. Rf3 {[%clk 0:00:03.9]} 39... a5 {[%clk 0:00:17]} 40. Bc4 {[%clk
0:00:04.1]} 40... a4 {[%clk 0:00:17.1]} 41. Rxf7 {[%clk 0:00:03.1]} 41... Kh8
{[%clk 0:00:15.9]} 42. Rf8+ {[%clk 0:00:03.4]} 42... Kg7 {[%clk 0:00:15.1]} 43.
Rg8# {[%clk 0:00:03.8]} 1-0